Cogmind - Beta 10.1 @@@ ROGUE MODE // 2020.09.24 @ 15:33:16 Player: jinkeloid Result: Destroyed by S-10 Pest with Light Assault Rifle Performance ------------- Evolutions (0) 0 Regions Visited (2) 400 Robots Destroyed (16) 80 Value Destroyed (302) 302 Prototype IDs (0) 0 Alien Tech Used (0) 0 Bonus (0) 0 TOTAL SCORE: 782 Bonus ------- None Cogmind --------- Core Integrity 0/250 Matter 291/300 Energy 99/100 System Corruption 0% Temperature Cool (0) Movement Core (50) Location -10/Mines Parts ------- > --- POWER (1) -------- (None) > --- PROPULSION (2) --- (None) > --- UTILITY (2) ------ Signal Interpreter Transport Network Coupler > --- WEAPON (2) ------- (None) > --- INVENTORY (4) ---- (None) Peak State ------------ > --- POWER ------------ Light Nuclear Core > --- PROPULSION ------- Flight Unit Flight Unit > --- UTILITY ---------- Signal Interpreter Transport Network Coupler > --- WEAPON ----------- Medium Laser Small Laser > --- INVENTORY -------- Small Laser Small Laser Small Laser Light Assault Rifle [Rating: 9] Favorites ----------- Power Ion Engine Engine Ion Engine Power Core Light Nuclear Core Propulsion Compact Wheel Wheel Compact Wheel Hover Unit Hover Unit Flight Unit Flight Unit Utility Signal Interpreter Processor Signal Interpreter Weapon Medium Laser Energy Gun Medium Laser Ballistic Gun Light Assault Rifle Build | -11 -10 -10 ------- Run | Scr Mat Min Slots Evolved . | . . . Power . | . . . Propulsion . | . . . Utility . | . . . Weapon . | . . . Parts Attached 21 | 5 13 3 Power 2 | 1 1 . Engine 1 | 1 . . Core 1 | . 1 . Reactor . | . . . Propulsion 7 | 2 5 . Treads . | . . . Leg . | . . . Wheel 3 | 2 1 . Hover 2 | . 2 . Flight 2 | . 2 . Utility 2 | . 2 . Device . | . . . Storage . | . . . Processor 2 | . 2 . Hackware . | . . . Protection . | . . . Artifact . | . . . Weapon 10 | 2 5 3 Energy Gun 8 | 2 4 2 Energy Cannon . | . . . Ballistic Gun 2 | . 1 1 Ballistic Cannon . | . . . Launcher . | . . . Special Weapon . | . . . Impact Weapon . | . . . Slashing Weapon . | . . . Piercing Weapon . | . . . Special Melee Weapon . | . . . Unidentified Prototypes . | . . . Parts Lost 10 | . 2 8 Power 2 | . 1 1 Propulsion 2 | . . 2 Utility . | . . . Weapon 6 | . 1 5 Highest Loss Streak 8 | . 1 8 Average Slot Usage (%) 83 | . 87 62 Engine 6 | . 7 . Core 6 | . 6 6 Wheel 7 | . 8 . Hover 8 | . 8 10 Flight 9 | . 10 . Processor 19 | . 17 28 Energy Gun 22 | . 24 14 Ballistic Gun 2 | . 1 4 Naked Turns . | . . . Heaviest Build 9 | 8 9 9 Greatest Support 32 | 32 32 12 Greatest Overweight (x) 1 | . 1 . Average Overweight (x) . | . . . Largest Inventory Capacity 4 | 4 4 4 Average Capacity 4 | 4 4 4 Most Carried 4 | . 4 3 Average Carried 1 | . 2 1 Final Capacity 4 | 4 4 4 Final Carried 3 | . 3 . Class Distribution -------------------- 57% | Mutant 42% | Scavenger-Mutant Dominant Class ---------------- Mutant | -10/Materials Mutant | -10/Mines Resources | -11 -10 -10 ----------- Run | Scr Mat Min Matter Collected 380 | 213 167 . Remotely . | . . . Salvage Created 481 | . 358 123 Parts 38 | . 31 7 Haulers Intercepted 2 | . 2 . Recyclers Shooed 1 | . . 1 Parts Field Recycled . | . . . Retrieved Matter . | . . . Parts Self-Destructed . | . . . Prevented . | . . . Kills | -11 -10 -10 ------- Run | Scr Mat Min Combat Hostiles Destroyed 12 | . 9 3 Guns 12 | . 9 3 Classes Destroyed 4 | . 4 . Hauler 2 | . 2 . Watcher 2 | . 2 . Swarmer 7 | . 6 1 Grunt 5 | . 3 2 Best Kill Streak 7 | . 7 3 Combat Bots Only 7 | . 7 3 Max Kills in Single Turn 2 | . 2 1 Gunslinging 1 | . 1 . Exploded . | . . . Melee . | . . . Uniques/NPCs Destroyed . | . . . Combat | -11 -10 -10 -------- Run | Scr Mat Min Damage Taken 803 | . 348 455 Core 253 | . 94 159 Absorbed by Shields . | . . . Core Remaining (%) 100 | 100 . . Volleys Fired 54 | . 40 14 Largest 2 | . 2 2 Hottest 100 | . 100 100 Shots Fired 98 | . 74 24 Gun 98 | . 74 24 Cannon . | . . . Launcher . | . . . Special . | . . . Kinetic 14 | . 10 4 Thermal 84 | . 64 20 Explosive . | . . . Electromagnetic . | . . . Robot Hit Streak 16 | . 16 3 Robot Miss Streak 4 | . 4 4 Penetration Max . | . . . Secondary Targets 3 | . 2 1 Max Gunslinging Chain 1 | . 1 1 Shots Hit Robots 61 | . 47 14 Core Hits 25 | . 19 6 Critical Hits . | . . . Critical Kills . | . . . Critical Parts Destroyed . | . . . Melee Attacks . | . . . Impact . | . . . Slashing . | . . . Piercing . | . . . Sneak Attacks . | . . . Combat Hostiles . | . . . Follow-up Attacks . | . . . Damage Inflicted 651 | . 473 178 Guns 651 | . 473 178 Cannons . | . . . Explosions . | . . . Melee . | . . . Ramming . | . . . Kinetic 79 | . 72 7 Thermal 572 | . 401 171 Explosive . | . . . Electromagnetic . | . . . Impact . | . . . Slashing . | . . . Piercing . | . . . Highest Corruption . | . . . Average Corruption . | . . . Corruption Purged . | . . . Overload Shots . | . . . Overflow Damage . | . . . Projectiles . | . . . Explosions . | . . . Melee . | . . . Knockbacks . | . . . Impact . | . . . Kinetic . | . . . Secondary . | . . . Self-Inflicted Damage . | . . . Shots . | . . . Rammed . | . . . Targets Rammed . | . . . Kicked . | . . . Crushed . | . . . Highest Temperature 424 | . 253 424 Average Temperature 111 | . 73 246 Received Heat Transfer 195 | . 120 75 Effects 4 | . . 4 Shutdowns 1 | . . 1 Energy Bleed 1 | . . 1 Interference 2 | . . 2 Siege Activations . | . . . Robots Corrupted . | . . . Combat Hostiles . | . . . Parts Fried . | . . . Impact Corruptions . | . . . Robots Melted . | . . . Combat Hostiles . | . . . Parts Melted 4 | . 3 1 Heat Transferred 1559 | . 1077 482 Parts Sabotaged . | . . . Parts Stolen . | . . . Parts Stripped . | . . . Power Chain Reactions . | . . . Missiles Intercepted . | . . . Alert | -11 -10 -10 ------- Run | Scr Mat Min Peak Influence 256 | . 256 30 Initial . | . . . Average 105 | . 130 10 Maximum Alert Level 1 | . 1 . Low Security (%) 73 | 100 67 100 Level 1 26 | . 32 . Level 2 . | . . . Level 3 . | . . . Level 4 . | . . . Level 5 . | . . . High Security . | . . . Max Security . | . . . Squads Dispatched 1 | . 1 . Investigation 1 | . 1 . Extermination . | . . . Reinforcement . | . . . Assault . | . . . Garrison . | . . . Intercept . | . . . Construction Impeded . | . . . Haulers Reinforced . | . . . Stealth | -11 -10 -10 --------- Run | Scr Mat Min Distress Signals 2 | . 1 1 Communications Jammed . | . . . Distress Signals . | . . . Times Spotted 27 | . 19 8 Peak Tracking Total 4 | . 4 4 Tactical Retreats 2 | . 1 1 Traps | -11 -10 -10 ------- Run | Scr Mat Min Traps Triggered 1 | . 1 . Indirectly . | . . . Trap Hack Attempts . | . . . Triggered . | . . . Disarmed . | . . . Reprogrammed . | . . . Reused . | . . . Traps Extracted . | . . . Installed . | . . . Triggered . | . . . Machines | -11 -10 -10 ---------- Run | Scr Mat Min Machines Disabled . | . . . Max in Single Turn . | . . . Machines Sabotaged . | . . . Garrisons Compromised . | . . . Overloaded Fab Kills . | . . . Fab Network Shutdowns . | . . . Hacking | -11 -10 -10 --------- Run | Scr Mat Min Machines Accessed 1 | . 1 . Terminals 1 | . 1 . Fabricators . | . . . Repair Stations . | . . . Recycling Units . | . . . Scanalyzers . | . . . Garrison Access . | . . . Total Hacks 1 | . 1 . Successful 1 | . 1 . Failed . | . . . Catastrophic . | . . . Database Lockouts . | . . . Manual . | . . . Terminals 1 | . 1 . Fabricators . | . . . Repair Stations . | . . . Recycling Units . | . . . Scanalyzers . | . . . Garrison Access . | . . . Terminal Hacks 1 | . 1 . Unreport Threat 1 | . 1 . Fabricator Hacks . | . . . Repair Station Hacks . | . . . Recycling Unit Hacks . | . . . Scanalyzer . | . . . Garrison Access Hacks . | . . . Unauthorized Hacks . | . . . Terminals . | . . . Fabricators . | . . . Repair Stations . | . . . Recycling Units . | . . . Scanalyzers . | . . . Garrison Access . | . . . Data Cores Recovered . | . . . Used . | . . . Hacking Detections 1 | . 1 . Full Trace Events . | . . . Feedback Events . | . . . Feedback Blocked . | . . . Robot Schematics Acquired . | . . . Robots Built . | . . . Matter . | . . . Time . | . . . Total Robot Build Rating . | . . . Part Schematics Acquired . | . . . Parts Built . | . . . Matter . | . . . Time . | . . . Total Part Build Rating . | . . . Parts Repaired . | . . . Time . | . . . Parts Recycled . | . . . Recycled Matter . | . . . Retrieved Matter . | . . . Retrieved Components . | . . . Parts Scanalyzed . | . . . Part Schematics Acquired . | . . . Parts Damaged . | . . . Bothacking | -11 -10 -10 ------------ Run | Scr Mat Min Used RIF Installer . | . . . Robots Hacked . | . . . Non-combat . | . . . Combat . | . . . Robot Hacks Applied . | . . . Relay Couplers Released . | . . . Robots Rewired . | . . . Allies Hacked . | . . . Hacks Repelled . | . . . Allies | -11 -10 -10 -------- Run | Scr Mat Min Total Allies . | . . . Largest Group . | . . . Highest-Rated Group . | . . . Highest-Rated Ally . | . . . Total Orders . | . . . Ally Attacks . | . . . Total Damage . | . . . Kills . | . . . Allies Corrupted . | . . . Allies Melted . | . . . Intel | -11 -10 -10 ------- Run | Scr Mat Min Robot Analysis Total . | . . . Derelict Logs Recovered 1 | . . 1 Drone Launches . | . . . Drone Recoveries . | . . . Exploration | -11 -10 -10 ------------- Run | Scr Mat Min Turns Passed 560 | 41 448 71 Spaces Moved 593 | 34 500 59 Core 45 | 1 . 44 Treads . | . . . Legs . | . . . Wheels 122 | 33 89 . Hover 212 | . 197 15 Flight 214 | . 214 . Fastest Speed 37 | 50 37 50 Average Speed 57 | 98 55 51 Slowest Speed 120 | 100 120 56 Overloaded Moves . | . . . Propulsion Burnouts . | . . . Robots Hopped 2 | . 2 . Cave-ins Triggered . | . . . Exploration Rate (%) 30 | 4 68 18 Regions Visited 2 Branch Regions 1 Pre-discovered Areas . | . . . Known Exits Taken 1 | . 1 . Unknown Exits Taken 1 | 1 . . Scrap Searched . | . . . Spaces Dug . | . . . Terrain Destroyed . | . . . Melee . | . . . Projectile . | . . . AOE . | . . . Terrain Rammed . | . . . Walls Destroyed . | . . . Machines Disabled . | . . . Actions | -11 -10 -10 --------- Run | Scr Mat Min Total 710 | 38 596 76 Wait 25 | . 25 . Move 587 | 33 495 59 Hop 2 | . 2 . Pick Up 6 | . 6 . Fast Attach 15 | 5 10 . Attach 6 | . 3 3 Detach 6 | . 6 . Swap . | . . . Drop 9 | . 9 . Fire 54 | . 40 14 Melee . | . . . Ram . | . . . Kick . | . . . Crush . | . . . Escape Stasis . | . . . Rewire . | . . . Trap . | . . . Miscellaneous . | . . . Route ------- -11/Scrapyard -10/Materials (discovered 3 exits: [*Mat] / *Min x2) -10/Mines (discovered 1 exit: [*Mat]) History --------- Turn | Location | Event 18 | -11/Scrapyard | Discovered new exit (range 13) 42 | -11/Scrapyard | Entered Materials 195 | -10/Materials | Destroyed 7 combat bots 284 | -10/Materials | Discovered new exit (range 7) 313 | -10/Materials | Discovered new exit (range 16) 338 | -10/Materials | Discovered new exit (range 5) 375 | -10/Materials | Identified exit to Mines 490 | -10/Materials | Entered Mines 497 | -10/Mines | Discovered new exit (range 10) 516 | -10/Mines | Core integrity fell below 50% 540 | -10/Mines | Core integrity fell below 20% 548 | -10/Mines | Learned Materials emergency access door positions 561 | -10/Mines | Destroyed by S-10 Pest with Light Assault Rifle Last Messages --------------- G-47 Trooper destroyed. Switching to secondary target: S-10 Pest. Power failure, Lgt. Nuclear Core shutdown. Lgt. Nuclear Core destroyed. K-01 Serf collects debris. Overheating: System interference. Lgt. Assault Rifle temporarily disabled. Transport Network Coupler temporarily disabled. Hover Unit destroyed. Med. Laser destroyed. K-01 Serf collects debris. Lgt. Assault Rifle destroyed. K-01 Serf collects debris. Overheating: Energy bleed (-17). S-10 Pest destroyed. K-01 Serf collects debris. Sml. Laser destroyed. K-01 Serf collects debris. Acquired derelict log, extracted data. Data stored: Materials emergency access points. Map ----- +----------------------------------------------------+ | | | | | | | | | | | | | | | | | | | | | | | | | | | | | | | ?????????????????????????????????????????????????? | | ???????????????###???????????####????????????????? | | ???????????????#T ??????## ##???????????????? | | ????????????????# ##### #???????????????? | | ????????????????? """ #???????????????? | | ????????????????? """ #????????????????? | | ????????????????? """ ##### #????????????????? | | ??????????????????????????## ##????????????????? | | ?????????????????????????## ##?????????????????? | | ?????????? ###### ########???????????? | | ?????????????????# @ ## ##??????????? | | ?????????????????# k #??????????? | | ????????????????# ##### #??????????? | | ???????????????????????# ss ##??????????? | | ???????????????????????# ##??###??????? | | ???????????????????????# """ #???# ??????? | | ??????????????????????# """ ##??# #??????? | | ????????????????????? """ #### #??????? | | ???????????????????? ## #??????? | | ?????????????????? ### # ######## | | ?????????????????? #########?## # | | ??????????????????#####???????????### # | | ????????????????????????????????????## ###### # | | ?????????????????????????????????????#####??### # | | ????????????????????????????????????????????# | | ????????????????????????????????????????????# | | ????????????????????????????????????????????# | | ????????????????????????????????????????????# | | ????????????????????????????????????????????##### | | ????????????????????????????????????????????????# | | ????????????????????????????????????????????????# | | ????????????????????????????????????????????????# | | ????????????????????????????????????????????????# | | ????????????????????????????????????????????????# | | ????????????????????????????????????????????????# | +----------------------------------------------------+ Best States ------------- Heat Dissipation 25 Energy Generation 14 Energy Capacity 250 Matter Stores 300 Matter Capacity 300 Sight Range 16 Terrain Scan Density 10 Evasion (%) 62 Item Schematics ----------------- None Robot Schematics ------------------ None Fabricated ------------ Nothing Alien Tech Used ----------------- None Achievements -------------- None Challenges ------------ None Game ------ Seed FactoryHypervelocityDevice Manual? 0 Play Time 00:14:34 Cumulative 48.8 hours Start 2020.09.24 @ 15:20:07 End 2020.09.24 @ 15:33:16 Sessions 1 Manual Loads 0 Difficulty Rogue Special Mode None Game No. 9 Rogue 1 Adventurer 8 Explorer 0 Win Type - Total 5 Types 2/0/0/3/0/0/0/0/0 Lore% 45 Gallery% 36 Achievement% 43 Wizard Run 0 Options --------- ASCII 0 Keyboard 1 Movement Numpad Keybinds 0 Fullscreen 1 Font 18/SmallcapsGlow Map View 76x50 Tactical HUD 0 Map Filters NONE Filters NONE Steam 1 RUN: f145c5e8-1aab-487c-aa11-e1dcc00ce14f